[Event "Skalica Open 2019"]
[Site "Skalica"]
[Date "2019.08.26"]
[Round "3.19"]
[White "Havelka, Ondrej"]
[Black "Chan, Naruna"]
[Result "1-0"]
[ECO "E44"]
[WhiteElo "2112"]
[BlackElo "1950"]
[Annotator "NA"]
[PlyCount "93"]
[EventDate "2019.08.25"]
[EventType "swiss"]
[EventCountry "SVK"]
[SourceTitle "playchess.com"]
[Source "ChessBase"]
[SourceQuality "1"]
[TimeControl "40/5400+30:1800+30"]

1. d4 {[%emt 0:06:21]} Nf6 {[%emt 0:00:00]} 2. c4 {[%emt 0:00:05]} e6 {[%emt 0:00:00]} 3. Nc3 {[%emt 0:00:17]} Bb4 {[%emt 0:00:28]} 4. e3 {[%emt 0:00:06]} b6 {[%emt 0:01:19]} 5. Nge2 {[%emt 0:01:02]} Bb7 {[%emt 0:01:19]} 6. a3 {[%emt 0:00:29]} Bxc3+ {[%emt 0:00:53]} 7. Nxc3 {[%emt 0:00:02]} d5 {[%emt 0:04:39]} 8. Bd3 {[%emt 0:10:55]} O-O {[%emt 0:03:48]} 9. O-O {[%emt 0:00:05]} Nbd7 {[%emt 0:00:49]} 10. cxd5 {[%emt 0:05:23]} exd5 {[%emt 0:00:26]} 11. b4 {[%emt 0:00:36]} Re8 {[%emt 0:08:43]} 12. Qb3 {[%emt 0:02:39]} c6 {[%emt 0:04:41]} 13. f3 {[%emt 0:09:17]} Nf8 {[%emt 0:06:39]} 14. Ra2 {[%emt 0:02:22]} Ne6 {[%emt 0:04:22]} 15. Re2 {[%emt 0:05:56]} Qe7 {[%emt 0:03:46]} 16. a4 {[%emt 0:08:30]} Rac8 {[%emt 0:04:01]} 17. Ba3 {[%emt 0:02:13]} Qd7 {[%emt 0:04:18]} 18. Bf5 {[%emt 0:02:14]} Rc7 {[%emt 0:10:45]} 19. Rd1 {[%emt 0:04:47]} Rd8 {[%emt 0:09:08]} 20. Bh3 {[%emt 0:02:46]} Qe8 {[%emt 0:00:30]} 21. Bb2 {[%emt 0:14:08]} Ba6 {[%emt 0:06:06]} 22. b5 {[%emt 0:00:33]} Bb7 {[%emt 0:01:33]} 23. bxc6 {[%emt 0:00:36]} Bxc6 {[%emt 0:00:58]} 24. Ree1 {[%emt 0:04:47]} Re7 {[%emt 0:03:26]} 25. Kf2 {[%emt 0:04:29]} Bb7 {[%emt 0:06:31]} 26. Bf5 {[%emt 0:01:49]} Ba6 {[%emt 0:00:26]} 27. Nb5 {[%emt 0:01:36]} Qd7 {[%emt 0:05:31]} 28. Bd3 {[%emt 0:03:20]} Qb7 {[%emt 0:02:20]} 29. Ba3 {[%emt 0:00:48]} Red7 {[%emt 0:00:06]} 30. Rc1 {[%emt 0:00:16]} Bxb5 {[%emt 0:01:18]} 31. axb5 {[%emt 0:00:22]} Rc8 {[%emt 0:00:49]} 32. Bb4 {[%emt 0:01:21]} Rdc7 {[%emt 0:01:17]} 33. Ra1 {[%emt 0:00:39]} Rd7 {[%emt 0:02:03]} 34. Ra2 {[%emt 0:00:26]} Qb8 {[%emt 0:00:02]} 35. g3 {[%emt 0:00:40]} h5 {[%emt 0:00:21]} 36. Kg2 {[%emt 0:01:41]} Rcc7 {[%emt 0:02:41]} 37. Rea1 {[%emt 0:00:27]} Qe8 {[%emt 0:00:25]} 38. Kf2 {[%emt 0:00:27]} Ng5 {[%emt 0:00:28]} 39. Bf5 {[%emt 0:01:22]} Ne6 {[%emt 0:00:33]} 40. Ra4 {[%emt 0:02:34]} Qb8 {[%emt 0:01:53]} 41. Qa3 {[%emt 0:31:11]} g6 {[%emt 0:05:27]} 42. Bd3 {[%emt 0:00:00]} Ng5 {[%emt 0:05:32]} 43. Re1 {[%emt 0:00:00]} Qe8 {[%emt 0:04:28]} 44. Bd6 {[%emt 0:00:00]} Rb7 {[%emt 0:00:29]} 45. Rc1 {[%emt 0:00:00]} Kg7 {[%emt 0:03:38]} 46. Be5 {[%emt 0:00:00]} Qe6 {[%emt 0:00:48]} 47. Rc6 {[%emt 0:00:00]} 1-0

[Event "Skalica Open 2019"]
[Site "Skalica"]
[Date "2019.08.26"]
[Round "3.20"]
[White "Hrbek, Stepan"]
[Black "Sefcik, Marek"]
[Result "1-0"]
[ECO "B01"]
[WhiteElo "2066"]
[BlackElo "2024"]
[Annotator "NA"]
[PlyCount "53"]
[EventDate "2019.08.25"]
[EventType "swiss"]
[EventCountry "SVK"]
[SourceTitle "playchess.com"]
[Source "ChessBase"]
[SourceQuality "1"]
[TimeControl "40/5400+30:1800+30"]

1. e4 {[%emt 0:06:17]} d5 {[%emt 0:00:00]} 2. exd5 {[%emt 0:00:08]} Qxd5 {[%emt 0:00:00]} 3. Nc3 {[%emt 0:00:09]} Qd6 {[%emt 0:00:00]} 4. d4 {[%emt 0:01:10]} Nf6 {[%emt 0:00:07]} 5. Nf3 {[%emt 0:03:22]} Bg4 {[%emt 0:02:26]} 6. h3 {[%emt 0:05:27]} Bxf3 {[%emt 0:01:57]} 7. Qxf3 {[%emt 0:00:48]} c6 {[%emt 0:00:13]} 8. Be3 {[%emt 0:17:05]} e6 {[%emt 0:02:32]} 9. Be2 {[%emt 0:02:44]} Qc7 {[%emt 0:02:25]} 10. O-O {[%emt 0:02:02]} Nbd7 {[%emt 0:02:35]} 11. Ne4 {[%emt 0:04:51]} Nxe4 {[%emt 0:02:45]} 12. Qxe4 {[%emt 0:01:17]} Nf6 {[%emt 0:00:21]} 13. Qd3 {[%emt 0:01:18]} Nd5 {[%emt 0:01:51]} 14. c4 {[%emt 0:06:31]} Nxe3 {[%emt 0:00:47]} 15. fxe3 {[%emt 0:00:46]} O-O-O {[%emt 0:04:10]} 16. Qe4 {[%emt 0:13:54]} Kb8 {[%emt 0:12:30]} 17. Rab1 {[%emt 0:02:20]} Qd7 {[%emt 0:06:23]} 18. b4 {[%emt 0:05:41]} f5 {[%emt 0:00:59]} 19. Qc2 {[%emt 0:01:11]} e5 {[%emt 0:14:29]} 20. Rfd1 {[%emt 0:04:04]} e4 {[%emt 0:01:03]} 21. c5 {[%emt 0:00:14]} Be7 {[%emt 0:18:35]} 22. b5 {[%emt 0:03:52]} Rc8 {[%emt 0:04:52]} 23. b6 {[%emt 0:05:08]} a6 {[%emt 0:09:25]} 24. Qa4 {[%emt 0:01:45]} Rcd8 {[%emt 0:00:42]} 25. Bxa6 {[%emt 0:06:38]} bxa6 {[%emt 0:00:15]} 26. b7 {[%emt 0:00:05]} Qxb7 {[%emt 0:00:21]} 27. Qxc6 {[%emt 0:00:39]} 1-0

[Event "Skalica Open 2019"]
[Site "Skalica"]
[Date "2019.08.26"]
[Round "3.21"]
[White "Krupnova, Anna"]
[Black "Petkevich, Denis"]
[Result "1/2-1/2"]
[ECO "E73"]
[WhiteElo "1712"]
[BlackElo "1863"]
[Annotator "NA"]
[PlyCount "164"]
[EventDate "2019.08.25"]
[EventType "swiss"]
[EventCountry "SVK"]
[SourceTitle "playchess.com"]
[Source "ChessBase"]
[SourceQuality "1"]
[TimeControl "40/5400+30:1800+30"]

1. d4 {[%emt 0:01:48]} Nf6 {[%emt 0:00:00]} 2. c4 {[%emt 0:00:17]} g6 {[%emt 0:00:00]} 3. Nc3 {[%emt 0:00:27]} Bg7 {[%emt 0:00:00]} 4. e4 {[%emt 0:00:13]} d6 {[%emt 0:00:00]} 5. Be2 {[%emt 0:00:08]} O-O {[%emt 0:00:02]} 6. Bg5 {[%emt 0:00:14]} Nbd7 {[%emt 0:02:34]} 7. Qd2 {[%emt 0:01:11]} e5 {[%emt 0:01:48]} 8. d5 {[%emt 0:00:43]} a5 {[%emt 0:04:47]} 9. f3 {[%emt 0:00:47]} Nc5 {[%emt 0:02:16]} 10. g4 {[%emt 0:00:40]} Qd7 {[%emt 0:01:42]} 11. h4 {[%emt 0:01:36]} Ne8 {[%emt 0:03:38]} 12. h5 {[%emt 0:04:34]} f6 {[%emt 0:00:38]} 13. Be3 {[%emt 0:05:36]} Rf7 {[%emt 0:03:42]} 14. hxg6 {[%emt 0:02:54]} hxg6 {[%emt 0:00:02]} 15. Nh3 {[%emt 0:05:24]} Na4 {[%emt 0:04:20]} 16. Nf2 {[%emt 0:06:10]} Nxc3 {[%emt 0:00:07]} 17. Qxc3 {[%emt 0:00:15]} c5 {[%emt 0:00:46]} 18. O-O-O {[%emt 0:06:42]} Qa4 {[%emt 0:03:42]} 19. Kb1 {[%emt 0:03:59]} Qb4 {[%emt 0:02:15]} 20. Qc1 {[%emt 0:01:24]} a4 {[%emt 0:03:06]} 21. Nd3 {[%emt 0:05:23]} Qb6 {[%emt 0:00:33]} 22. Ka1 {[%emt 0:02:20]} Bd7 {[%emt 0:02:56]} 23. Rh2 {[%emt 0:01:35]} Kf8 {[%emt 0:00:09]} 24. Rdh1 {[%emt 0:10:50]} Ke7 {[%emt 0:04:59]} 25. Rh7 {[%emt 0:03:36]} Kd8 {[%emt 0:02:08]} 26. Kb1 {[%emt 0:07:15]} Qa5 {[%emt 0:05:04]} 27. Kc2 {[%emt 0:00:59]} b5 {[%emt 0:01:19]} 28. Kd1 {[%emt 0:02:20]} bxc4 {[%emt 0:04:18]} 29. Qxc4 {[%emt 0:00:31]} Bb5 {[%emt 0:00:34]} 30. Qc1 {[%emt 0:02:38]} Rb8 {[%emt 0:00:32]} 31. Bd2 {[%emt 0:01:02]} Qb6 {[%emt 0:01:22]} 32. Bc3 {[%emt 0:06:17]} Kc8 {[%emt 0:04:23]} 33. Ke1 {[%emt 0:00:38]} Rbb7 {[%emt 0:04:37]} 34. R7h3 {[%emt 0:02:33]} Bf8 {[%emt 0:03:48]} 35. Qe3 {[%emt 0:04:41]} Be7 {[%emt 0:03:14]} 36. Rh6 {[%emt 0:02:27]} Rg7 {[%emt 0:01:32]} 37. Nf2 {[%emt 0:01:59]} Bd8 {[%emt 0:01:05]} 38. Bxb5 {[%emt 0:02:15]} Qxb5 {[%emt 0:00:07]} 39. Qe2 {[%emt 0:01:12]} Nc7 {[%emt 0:00:40]} 40. Rh8 {[%emt 0:01:11]} Kd7 {[%emt 0:04:29]} 41. R1h7 {[%emt 0:30:59]} Rxh7 {[%emt 0:30:22]} 42. Rxh7+ {[%emt 0:00:06]} Be7 {[%emt 0:00:07]} 43. Nd1 {[%emt 0:02:26]} Qxe2+ {[%emt 0:01:00]} 44. Kxe2 {[%emt 0:00:05]} Nb5 {[%emt 0:00:05]} 45. Bd2 {[%emt 0:00:48]} Nd4+ {[%emt 0:00:48]} 46. Kf2 {[%emt 0:00:13]} Kc8 {[%emt 0:06:16]} 47. Rh8+ {[%emt 0:00:00]} Kd7 {[%emt 0:00:00]} 48. Ra8 {[%emt 0:00:00]} f5 {[%emt 0:00:00]} 49. gxf5 {[%emt 0:00:00]} gxf5 {[%emt 0:00:00]} 50. Rh8 {[%emt 0:00:00]} Ra7 {[%emt 0:00:00]} 51. a3 {[%emt 0:00:00]} f4 {[%emt 0:00:00]} 52. Kg2 {[%emt 0:00:00]} Kc7 {[%emt 0:00:00]} 53. Rh7 {[%emt 0:00:00]} Kb6 {[%emt 0:00:00]} 54. Nc3 {[%emt 0:00:57]} Ka5 {[%emt 0:00:00]} 55. Be1 {[%emt 0:02:07]} Rb7 {[%emt 0:00:00]} 56. Nd1+ {[%emt 0:00:59]} Ka6 {[%emt 0:00:00]} 57. Rg7 {[%emt 0:02:30]} Bd8 {[%emt 0:00:00]} 58. Rg6 {[%emt 0:00:31]} Rd7 {[%emt 0:00:00]} 59. Nc3 {[%emt 0:00:33]} Ba5 {[%emt 0:00:00]} 60. Kf2 {[%emt 0:00:25]} Bxc3 {[%emt 0:00:00]} 61. Bxc3 {[%emt 0:00:11]} Kb5 {[%emt 0:00:00]} 62. Rh6 {[%emt 0:00:45]} Kc4 {[%emt 0:00:00]} 63. Rh8 {[%emt 0:00:30]} Ra7 {[%emt 0:00:00]} 64. Rh6 {[%emt 0:00:37]} Nb5 {[%emt 0:00:00]} 65. Bd2 {[%emt 0:00:28]} Kd3 {[%emt 0:00:00]} 66. Bc1 Kc2 {[%emt 0:00:00]} 67. Rh1 {[%emt 0:00:56]} Nd4 {[%emt 0:00:00]} 68. Rh6 {[%emt 0:00:32]} Ra6 {[%emt 0:00:00]} 69. Bxf4 {[%emt 0:00:15]} exf4 {[%emt 0:00:00]} 70. e5 {[%emt 0:00:04]} Nb5 {[%emt 0:01:18]} 71. e6 {[%emt 0:00:08]} Ra7 {[%emt 0:00:05]} 72. Rf6 {[%emt 0:00:14]} Kxb2 {[%emt 0:01:02]} 73. Rf7 {[%emt 0:00:23]} Nc7 {[%emt 0:03:20]} 74. Rd7 {[%emt 0:01:16]} c4 {[%emt 0:00:57]} 75. e7 {[%emt 0:01:05]} c3 {[%emt 0:02:21]} 76. Rxc7 {[%emt 0:00:12]} Ra8 {[%emt 0:02:14]} 77. Ke2 {[%emt 0:00:33]} Kc2 {[%emt 0:01:11]} 78. Rd7 {[%emt 0:00:37]} Re8 {[%emt 0:00:07]} 79. Rc7 {[%emt 0:00:37]} Rh8 {[%emt 0:05:40]} 80. Rc6 {[%emt 0:00:32]} Re8 {[%emt 0:01:19]} 81. Rc7 {[%emt 0:00:24]} Rh8 {[%emt 0:00:10]} 82. Rc6 {[%emt 0:00:34]} Re8 {[%emt 0:00:07]} 1/2-1/2

[Event "Skalica Open 2019"]
[Site "Skalica"]
[Date "2019.08.26"]
[Round "3.22"]
[White "Ivanov, Alexander"]
[Black "Vlcek, Antonin"]
[Result "1/2-1/2"]
[ECO "A40"]
[WhiteElo "2473"]
[BlackElo "1686"]
[Annotator "ChessBase"]
[PlyCount "71"]
[EventDate "2019.08.25"]
[EventType "swiss"]
[EventCountry "SVK"]
[SourceTitle "playchess.com"]
[Source "ChessBase"]
[SourceQuality "1"]
[TimeControl "40/5400+30:1800+30"]

1. d4 {[%emt 0:00:00]} Nf6 {[%emt 0:00:00]} 2. c4 {[%emt 0:00:00]} e6 {[%emt 0:00:00]} 3. g3 {[%emt 0:00:00]} d5 {[%emt 0:01:23]} 4. Nf3 {[%emt 0:00:00]} Bb4+ {[%emt 0:02:08]} 5. Bd2 {[%emt 0:00:29]} Bxd2+ 6. Qxd2 Ne4 {[%emt 0:10:27]} 7. Qc2 {[%emt 0:01:04]} Nc6 {[%emt 0:05:15]} 8. a3 {[%emt 0:06:52]} O-O {[%emt 0:01:49]} 9. Bg2 {[%emt 0:02:10]} a5 {[%emt 0:02:30]} 10. O-O {[%emt 0:04:23]} Qf6 {[%emt 0:03:29]} 11. e3 {[%emt 0:00:51]} Ra6 {[%emt 0:08:19]} 12. Nbd2 {[%emt 0:13:01]} Nxd2 {[%emt 0:04:19]} 13. Nxd2 {[%emt 0:00:51]} Ne7 {[%emt 0:02:01]} 14. Qc3 {[%emt 0:03:21]} c5 {[%emt 0:02:42]} 15. dxc5 {[%emt 0:03:06]} Qxc3 {[%emt 0:02:24]} 16. bxc3 {[%emt 0:00:04]} Rc6 {[%emt 0:00:51]} 17. Rab1 {[%emt 0:02:49]} Rxc5 {[%emt 0:01:05]} 18. Rb5 {[%emt 0:04:28]} Rxb5 {[%emt 0:00:48]} 19. cxb5 {[%emt 0:00:06]} Bd7 {[%emt 0:01:07]} 20. a4 {[%emt 0:00:40]} Rc8 {[%emt 0:01:01]} 21. Rc1 {[%emt 0:01:27]} b6 {[%emt 0:02:40]} 22. Kf1 {[%emt 0:01:32]} e5 {[%emt 0:01:37]} 23. Ke2 {[%emt 0:06:15]} Be6 {[%emt 0:01:19]} 24. f4 {[%emt 0:12:33]} e4 {[%emt 0:01:07]} 25. c4 {[%emt 0:03:25]} f5 {[%emt 0:03:43]} 26. c5 {[%emt 0:08:23]} bxc5 {[%emt 0:04:30]} 27. Nb3 {[%emt 0:00:16]} c4 {[%emt 0:00:33]} 28. Nd4 {[%emt 0:00:28]} Kf7 {[%emt 0:02:01]} 29. Kd2 {[%emt 0:00:55]} Rb8 {[%emt 0:03:50]} 30. Kc3 {[%emt 0:05:09]} Bd7 {[%emt 0:03:06]} 31. Ne2 {[%emt 0:01:31]} Ke6 {[%emt 0:03:54]} 32. Nd4+ {[%emt 0:05:59]} Kd6 {[%emt 0:00:27]} 33. h4 {[%emt 0:01:41]} h5 {[%emt 0:00:47]} 34. Bf1 {[%emt 0:00:51]} Rb6 {[%emt 0:04:09]} 35. Be2 {[%emt 0:00:43]} g6 {[%emt 0:00:45]} 36. Bd1 {[%emt 0:02:32]} 1/2-1/2

[Event "Skalica Open 2019"]
[Site "Skalica"]
[Date "2019.08.26"]
[Round "3.23"]
[White "Kastler, Peter"]
[Black "Krakovsky, Peter"]
[Result "0-1"]
[ECO "D47"]
[WhiteElo "1724"]
[BlackElo "1000"]
[Annotator "NA"]
[PlyCount "120"]
[EventDate "2019.08.25"]
[EventType "swiss"]
[EventCountry "SVK"]
[SourceTitle "playchess.com"]
[Source "ChessBase"]
[SourceQuality "1"]
[TimeControl "40/5400+30:1800+30"]

1. d4 {[%emt 0:00:00]} Nf6 {[%emt 0:00:45]} 2. c4 {[%emt 0:00:05]} e6 {[%emt 0:00:07]} 3. e3 {[%emt 0:00:54]} d5 {[%emt 0:00:18]} 4. Nf3 {[%emt 0:00:13]} c6 5. Nc3 {[%emt 0:00:21]} Nbd7 {[%emt 0:02:50]} 6. Bd3 {[%emt 0:00:54]} dxc4 {[%emt 0:00:19]} 7. Bxc4 {[%emt 0:00:14]} Be7 {[%emt 0:00:25]} 8. O-O {[%emt 0:00:37]} O-O {[%emt 0:00:10]} 9. Bd2 {[%emt 0:04:54]} Nb6 {[%emt 0:02:16]} 10. Be2 {[%emt 0:00:28]} Bd7 {[%emt 0:01:08]} 11. Ne5 {[%emt 0:00:40]} Nbd5 {[%emt 0:01:47]} 12. Nxd7 {[%emt 0:00:43]} Qxd7 {[%emt 0:00:30]} 13. Rc1 {[%emt 0:03:21]} Rfd8 {[%emt 0:02:03]} 14. Bf3 {[%emt 0:00:38]} Rac8 {[%emt 0:00:51]} 15. a3 {[%emt 0:02:56]} Nxc3 {[%emt 0:04:14]} 16. Bxc3 {[%emt 0:00:58]} Nd5 {[%emt 0:00:04]} 17. Ba5 {[%emt 0:02:53]} b6 {[%emt 0:04:18]} 18. Bxd5 {[%emt 0:08:36]} cxd5 {[%emt 0:02:07]} 19. Bc3 {[%emt 0:03:44]} Rc7 {[%emt 0:00:28]} 20. Re1 {[%emt 0:00:35]} Rdc8 {[%emt 0:00:08]} 21. Re2 {[%emt 0:00:17]} Bxa3 {[%emt 0:00:29]} 22. Rec2 {[%emt 0:05:34]} Bd6 {[%emt 0:04:18]} 23. g3 {[%emt 0:00:20]} a5 {[%emt 0:02:03]} 24. Qd3 {[%emt 0:05:06]} a4 {[%emt 0:04:10]} 25. Bd2 {[%emt 0:06:33]} Rxc2 {[%emt 0:10:11]} 26. Rxc2 {[%emt 0:00:10]} Rxc2 {[%emt 0:00:10]} 27. Qxc2 {[%emt 0:00:12]} g6 {[%emt 0:00:09]} 28. Kf1 {[%emt 0:01:50]} Qb5+ {[%emt 0:00:54]} 29. Ke1 {[%emt 0:02:09]} Qc4 {[%emt 0:00:32]} 30. Qc3 {[%emt 0:08:16]} Qxc3 {[%emt 0:05:12]} 31. Bxc3 {[%emt 0:01:14]} Kf8 {[%emt 0:00:06]} 32. Kd2 {[%emt 0:00:46]} Ke7 {[%emt 0:00:07]} 33. Kc2 {[%emt 0:00:17]} Kd7 {[%emt 0:00:10]} 34. b3 {[%emt 0:06:59]} a3 {[%emt 0:02:54]} 35. b4 {[%emt 0:01:44]} Kc6 {[%emt 0:00:07]} 36. Kb3 {[%emt 0:00:53]} Kb5 {[%emt 0:00:04]} 37. f3 a2 38. e4 {[%emt 0:07:03]} Bxb4 {[%emt 0:01:36]} 39. Bb2 {[%emt 0:00:21]} Be1 {[%emt 0:00:36]} 40. exd5 {[%emt 0:00:57]} exd5 {[%emt 0:00:19]} 41. g4 {[%emt 0:30:27]} Bd2 {[%emt 0:33:19]} 42. Ba1 {[%emt 0:01:36]} Kc6 {[%emt 0:00:46]} 43. Kxa2 {[%emt 0:01:32]} Kd6 {[%emt 0:00:09]} 44. Kb3 {[%emt 0:00:39]} Ke6 {[%emt 0:00:16]} 45. Kc2 {[%emt 0:00:19]} Bf4 46. h3 Kf6 {[%emt 0:01:53]} 47. Bc3 {[%emt 0:01:08]} Kg5 {[%emt 0:00:18]} 48. Be1 {[%emt 0:00:30]} f5 {[%emt 0:00:25]} 49. h4+ {[%emt 0:08:39]} Kf6 {[%emt 0:00:16]} 50. Bf2 {[%emt 0:00:54]} fxg4 {[%emt 0:01:39]} 51. fxg4 {[%emt 0:02:18]} h5 {[%emt 0:00:15]} 52. gxh5 {[%emt 0:01:12]} gxh5 {[%emt 0:00:02]} 53. Kb3 {[%emt 0:03:38]} Kf5 {[%emt 0:00:14]} 54. Kb4 {[%emt 0:00:13]} Kg4 {[%emt 0:00:10]} 55. Kb5 {[%emt 0:00:39]} Bg3 {[%emt 0:00:07]} 56. Bg1 {[%emt 0:00:36]} Bxh4 {[%emt 0:00:17]} 57. Kxb6 {[%emt 0:00:15]} Kf4 {[%emt 0:00:15]} 58. Kc5 {[%emt 0:03:05]} Ke4 {[%emt 0:00:14]} 59. Kb4 {[%emt 0:00:00]} Bg3 {[%emt 0:00:00]} 60. Kc3 {[%emt 0:00:00]} h4 {[%emt 0:00:00]} 0-1

[Event "Skalica Open 2019"]
[Site "Skalica"]
[Date "2019.08.26"]
[Round "3.24"]
[White "Podskubka, Ondrej"]
[Black "Hrubsa, Marian"]
[Result "0-1"]
[ECO "A06"]
[WhiteElo "1684"]
[BlackElo "1888"]
[Annotator "NA"]
[PlyCount "110"]
[EventDate "2019.08.25"]
[EventType "swiss"]
[EventCountry "SVK"]
[SourceTitle "playchess.com"]
[Source "ChessBase"]
[SourceQuality "1"]
[TimeControl "40/5400+30:1800+30"]

1. Nf3 {[%emt 0:00:00]} d5 {[%emt 0:00:16]} 2. d4 {[%emt 0:00:07]} e6 {[%emt 0:00:24]} 3. Bf4 {[%emt 0:00:43]} c5 {[%emt 0:01:07]} 4. c3 {[%emt 0:03:18]} Nc6 {[%emt 0:00:39]} 5. e3 {[%emt 0:00:35]} Nf6 {[%emt 0:02:46]} 6. h3 {[%emt 0:00:27]} Bd7 {[%emt 0:01:05]} 7. Be2 {[%emt 0:01:23]} Rc8 {[%emt 0:00:55]} 8. O-O {[%emt 0:00:15]} Be7 {[%emt 0:02:32]} 9. Re1 {[%emt 0:04:13]} O-O {[%emt 0:01:11]} 10. Nbd2 {[%emt 0:00:29]} cxd4 {[%emt 0:06:11]} 11. exd4 {[%emt 0:03:51]} Na5 {[%emt 0:04:56]} 12. Ne5 {[%emt 0:00:13]} Nc6 {[%emt 0:02:33]} 13. Ndf3 {[%emt 0:02:13]} Ne4 {[%emt 0:01:42]} 14. Bd3 {[%emt 0:08:39]} f5 {[%emt 0:08:18]} 15. Nxd7 {[%emt 0:04:03]} Qxd7 {[%emt 0:00:22]} 16. Ne5 {[%emt 0:00:06]} Nxe5 {[%emt 0:01:54]} 17. Bxe5 {[%emt 0:00:06]} Bf6 {[%emt 0:01:53]} 18. Bh2 {[%emt 0:00:16]} Qf7 {[%emt 0:02:27]} 19. f3 {[%emt 0:08:43]} Bh4 {[%emt 0:01:26]} 20. fxe4 {[%emt 0:01:47]} Bxe1 {[%emt 0:00:30]} 21. Qxe1 {[%emt 0:01:05]} fxe4 {[%emt 0:00:14]} 22. Be2 {[%emt 0:01:46]} Qg6 {[%emt 0:03:37]} 23. Bd6 {[%emt 0:02:44]} Rf7 {[%emt 0:04:42]} 24. Qh4 {[%emt 0:02:37]} Kh8 {[%emt 0:09:10]} 25. Qh5 {[%emt 0:11:56]} Qxh5 {[%emt 0:04:31]} 26. Bxh5 {[%emt 0:00:13]} Rd7 {[%emt 0:03:41]} 27. Bb4 {[%emt 0:03:53]} g6 {[%emt 0:03:46]} 28. Bg4 {[%emt 0:00:48]} Re8 {[%emt 0:00:50]} 29. Rf1 {[%emt 0:02:31]} Kg7 {[%emt 0:00:18]} 30. Bc5 {[%emt 0:01:37]} b6 {[%emt 0:01:10]} 31. Ba3 {[%emt 0:00:40]} b5 {[%emt 0:01:27]} 32. h4 {[%emt 0:01:08]} Rf7 {[%emt 0:04:55]} 33. Rxf7+ {[%emt 0:00:31]} Kxf7 {[%emt 0:01:06]} 34. Bd6 {[%emt 0:01:07]} Rc8 {[%emt 0:00:13]} 35. Kf2 {[%emt 0:02:15]} Rc6 {[%emt 0:00:33]} 36. Bb4 {[%emt 0:15:10]} Kf6 {[%emt 0:02:21]} 37. Be2 {[%emt 0:02:06]} a6 {[%emt 0:02:11]} 38. Ke3 {[%emt 0:07:23]} g5 {[%emt 0:09:48]} 39. hxg5+ {[%emt 0:03:31]} Kxg5 {[%emt 0:00:19]} 40. Be7+ {[%emt 0:00:06]} Kg6 {[%emt 0:00:35]} 41. g3 {[%emt 0:35:21]} Rc7 {[%emt 0:32:20]} 42. Bd6 {[%emt 0:00:12]} Rc6 {[%emt 0:00:06]} 43. Bc5 {[%emt 0:00:00]} Rc7 {[%emt 0:00:00]} 44. Bd6 {[%emt 0:00:00]} Rd7 {[%emt 0:00:00]} 45. Bc5 {[%emt 0:00:00]} h5 {[%emt 0:00:00]} 46. a4 {[%emt 0:00:00]} Rb7 {[%emt 0:00:00]} 47. axb5 {[%emt 0:00:00]} axb5 {[%emt 0:00:00]} 48. Kf4 {[%emt 0:00:00]} Rf7+ {[%emt 0:00:00]} 49. Ke5 {[%emt 0:00:00]} Rf2 {[%emt 0:00:00]} 50. Bxb5 {[%emt 0:00:00]} Rxb2 {[%emt 0:00:00]} 51. Be8+ {[%emt 0:00:00]} Kg5 {[%emt 0:00:00]} 52. Kxe6 {[%emt 0:00:00]} e3 {[%emt 0:00:00]} 53. Be7+ {[%emt 0:01:05]} Kg4 {[%emt 0:00:00]} 54. Kxd5 {[%emt 0:01:13]} e2 {[%emt 0:00:00]} 55. Bd7+ {[%emt 0:00:21]} Kf3 {[%emt 0:00:00]} 0-1

[Event "Skalica Open 2019"]
[Site "Skalica"]
[Date "2019.08.27"]
[Round "4.1"]
[White "Pulpan, Jakub"]
[Black "Demidov, Mikhail"]
[Result "1/2-1/2"]
[ECO "B06"]
[WhiteElo "2397"]
[BlackElo "2556"]
[Annotator "ChessBase"]
[PlyCount "88"]
[EventDate "2019.08.25"]
[EventType "swiss"]
[EventCountry "SVK"]
[SourceTitle "playchess.com"]
[Source "ChessBase"]
[SourceQuality "1"]
[TimeControl "40/5400+30:1800+30"]

1. e4 {[%emt 0:00:00]} g6 {[%emt 0:00:00]} 2. d4 {[%emt 0:00:01]} Bg7 {[%emt 0:00:00]} 3. Nf3 {[%emt 0:00:52]} d6 {[%emt 0:00:00]} 4. Nc3 {[%emt 0:00:47]} a6 {[%emt 0:00:00]} 5. a4 {[%emt 0:02:45]} Nf6 {[%emt 0:02:08]} 6. Be2 {[%emt 0:00:27]} O-O {[%emt 0:00:07]} 7. O-O {[%emt 0:00:11]} Bg4 {[%emt 0:00:23]} 8. Nd2 {[%emt 0:05:33]} Bxe2 {[%emt 0:06:41]} 9. Qxe2 {[%emt 0:00:15]} Nc6 {[%emt 0:00:56]} 10. Nf3 {[%emt 0:01:29]} Nd7 {[%emt 0:00:26]} 11. Rd1 {[%emt 0:06:05]} e5 {[%emt 0:00:22]} 12. Be3 {[%emt 0:09:51]} exd4 {[%emt 0:02:38]} 13. Nxd4 {[%emt 0:01:04]} Re8 {[%emt 0:00:10]} 14. f3 {[%emt 0:04:41]} Qb8 {[%emt 0:05:13]} 15. Kh1 {[%emt 0:07:22]} Ne7 {[%emt 0:01:55]} 16. Qd2 {[%emt 0:02:58]} Ne5 {[%emt 0:00:48]} 17. b3 {[%emt 0:00:41]} N5c6 {[%emt 0:00:57]} 18. Re1 {[%emt 0:01:02]} Qc8 {[%emt 0:03:36]} 19. Rad1 {[%emt 0:01:36]} Qd7 {[%emt 0:00:24]} 20. Nxc6 {[%emt 0:03:44]} Nxc6 {[%emt 0:00:25]} 21. Nd5 {[%emt 0:00:22]} Ne7 {[%emt 0:00:28]} 22. Bd4 {[%emt 0:01:43]} Bxd4 {[%emt 0:01:29]} 23. Qxd4 {[%emt 0:01:13]} Nxd5 {[%emt 0:00:08]} 24. Qxd5 {[%emt 0:00:51]} Qc6 {[%emt 0:01:26]} 25. Qxc6 {[%emt 0:19:25]} bxc6 {[%emt 0:00:16]} 26. e5 {[%emt 0:00:06]} dxe5 {[%emt 0:06:05]} 27. Rd7 {[%emt 0:00:44]} Rac8 {[%emt 0:01:47]} 28. Kg1 {[%emt 0:04:45]} Kf8 {[%emt 0:02:08]} 29. Kf2 {[%emt 0:01:58]} Re6 {[%emt 0:00:14]} 30. Red1 {[%emt 0:00:44]} Re7 {[%emt 0:03:25]} 31. Rd8+ {[%emt 0:00:33]} Rxd8 {[%emt 0:00:12]} 32. Rxd8+ {[%emt 0:00:04]} Re8 {[%emt 0:00:06]} 33. Rd7 {[%emt 0:00:24]} Rc8 {[%emt 0:00:25]} 34. Ke3 {[%emt 0:00:17]} Ke8 {[%emt 0:00:13]} 35. Rd3 {[%emt 0:00:30]} Rd8 {[%emt 0:06:56]} 36. Rc3 {[%emt 0:00:46]} Kd7 {[%emt 0:04:11]} 37. Rc5 {[%emt 0:01:11]} f6 {[%emt 0:00:31]} 38. b4 {[%emt 0:02:31]} Ra8 {[%emt 0:11:24]} 39. Ra5 {[%emt 0:02:06]} Kc8 {[%emt 0:01:18]} 40. g4 {[%emt 0:00:42]} Kb7 {[%emt 0:06:01]} 41. g5 {[%emt 0:30:29]} fxg5 {[%emt 0:30:34]} 42. Rxe5 {[%emt 0:00:07]} Rd8 {[%emt 0:10:32]} 43. Rxg5 {[%emt 0:04:13]} Re8+ {[%emt 0:00:13]} 44. Kd2 {[%emt 0:07:25]} Rd8+ {[%emt 0:01:29]} 1/2-1/2